[Event "Croatian-ch Youth U15 2022"]
[Site "Trogir"]
[Date "2022.06.25"]
[Round "6.8"]
[White "Mlinaric, Simun"]
[Black "Horcicka, Jan"]
[Result "0-1"]
[ECO "D11"]
[WhiteElo "1399"]
[BlackElo "1804"]
[Annotator "NA RC"]
[PlyCount "46"]
[EventDate "2022.06.22"]
[EventType "swiss"]
[EventCountry "CRO"]
[SourceTitle "playchess.com"]
[Source "ChessBase"]
[SourceQuality "1"]
[TimeControl "5400+30"]

1. d4 {[%emt 0:00:02]} d5 {[%emt 0:00:04]} 2. Nf3 {[%emt 0:00:04]} Nf6 {[%emt 0:00:04]} 3. g3 {[%emt 0:00:07]} c6 {[%emt 0:00:03]} 4. Bg2 {[%emt 0:00:05]} Bf5 {[%emt 0:00:04]} 5. O-O {[%emt 0:00:08]} e6 {[%emt 0:00:02]} 6. c4 {[%emt 0:00:08]} Nbd7 {[%emt 0:00:03]} 7. Qb3 {[%emt 0:00:43]} Qc8 {[%emt 0:23:25]} 8. c5 {[%emt 0:18:24]} Be7 {[%emt 0:02:27]} 9. Nc3 {[%emt 0:02:19]} O-O {[%emt 0:00:42]} 10. Nh4 {[%emt 0:02:29]} Bg4 {[%emt 0:00:41]} 11. h3 {[%emt 0:04:42]} Bh5 {[%emt 0:00:05]} 12. Bf3 {[%emt 0:08:03]} e5 {[%emt 0:01:30]} 13. e3 {[%emt 0:13:25]} Bxf3 {[%emt 0:06:41]} 14. Nxf3 {[%emt 0:00:14]} e4 {[%emt 0:00:10]} 15. Nh4 {[%emt 0:05:43]} Nxc5 {[%emt 0:04:09]} 16. Qc2 {[%emt 0:14:15]} Qxh3 {[%emt 0:00:20]} 17. dxc5 {[%emt 0:05:49]} g5 {[%emt 0:00:58]} 18. Nf5 {[%emt 0:02:42]} Qxf5 {[%emt 0:00:49]} 19. f3 {[%emt 0:02:10]} Qh3 {[%emt 0:05:14]} 20. fxe4 {[%emt 0:03:34]} Qxg3+ {[%emt 0:00:30]} 21. Qg2 {[%emt 0:01:11]} Nxe4 {[%emt 0:03:13]} 22. Nxe4 {[%emt 0:00:34]} Qxg2+ {[%emt 0:00:06]} 23. Kxg2 {[%emt 0:00:04]} dxe4 {[%emt 0:00:05]} 0-1

[Event "Croatian-ch Youth U15 2022"]
[Site "Trogir"]
[Date "2022.06.25"]
[Round "6.9"]
[White "Botica, Lucija"]
[Black "Begic, Klara"]
[Result "0-1"]
[ECO "B13"]
[WhiteElo "1145"]
[BlackElo "1727"]
[Annotator "NA RC"]
[PlyCount "66"]
[EventDate "2022.06.22"]
[EventType "swiss"]
[EventCountry "CRO"]
[SourceTitle "playchess.com"]
[Source "ChessBase"]
[SourceQuality "1"]
[TimeControl "5400+30"]

1. e4 {[%emt 0:00:02]} c6 {[%emt 0:00:27]} 2. d4 {[%emt 0:00:08]} d5 {[%emt 0:00:04]} 3. exd5 {[%emt 0:00:15]} cxd5 {[%emt 0:00:06]} 4. c4 {[%emt 0:00:12]} Nf6 {[%emt 0:00:09]} 5. Nc3 {[%emt 0:00:44]} Nc6 {[%emt 0:00:33]} 6. Nf3 {[%emt 0:00:08]} Bg4 {[%emt 0:00:09]} 7. cxd5 {[%emt 0:02:02]} Nxd5 {[%emt 0:02:08]} 8. Bb5 {[%emt 0:04:46]} Nxc3 {[%emt 0:08:28]} 9. bxc3 {[%emt 0:00:16]} Qa5 {[%emt 0:11:39]} 10. Bxc6+ {[%emt 0:04:57]} bxc6 {[%emt 0:00:08]} 11. Qd3 {[%emt 0:04:41]} Bf5 {[%emt 0:08:05]} 12. Qc4 {[%emt 0:03:48]} Qd5 {[%emt 0:02:36]} 13. Qxd5 {[%emt 0:05:05]} cxd5 {[%emt 0:00:06]} 14. Nh4 {[%emt 0:07:53]} Be4 {[%emt 0:05:14]} 15. f3 {[%emt 0:00:40]} Bd3 {[%emt 0:00:04]} 16. Kd2 {[%emt 0:02:56]} Bc4 {[%emt 0:00:08]} 17. Nf5 {[%emt 0:01:16]} e6 {[%emt 0:00:12]} 18. Ne3 {[%emt 0:00:41]} Ba6 {[%emt 0:01:02]} 19. Re1 {[%emt 0:03:44]} Kd7 {[%emt 0:00:08]} 20. Rb1 {[%emt 0:16:30]} Bd6 {[%emt 0:00:59]} 21. g3 {[%emt 0:00:32]} Rab8 {[%emt 0:01:33]} 22. Bb2 {[%emt 0:01:21]} Rb6 {[%emt 0:00:40]} 23. Rec1 {[%emt 0:04:48]} Rhb8 {[%emt 0:01:14]} 24. Kc2 {[%emt 0:02:30]} h5 {[%emt 0:00:49]} 25. Nd1 {[%emt 0:06:27]} h4 {[%emt 0:03:29]} 26. f4 {[%emt 0:00:33]} g5 {[%emt 0:00:24]} 27. Nf2 {[%emt 0:04:31]} hxg3 {[%emt 0:02:50]} 28. hxg3 {[%emt 0:00:27]} gxf4 {[%emt 0:00:07]} 29. gxf4 {[%emt 0:00:48]} Bxf4 {[%emt 0:00:10]} 30. Rg1 {[%emt 0:00:32]} Bd6 {[%emt 0:05:26]} 31. Ba1 {[%emt 0:05:10]} Rxb1 {[%emt 0:02:10]} 32. Rxb1 {[%emt 0:00:08]} Rg8 {[%emt 0:00:32]} 33. c4 {[%emt 0:07:32]} Rg2 {[%emt 0:00:31]} 0-1

[Event "Croatian-ch Youth U15 2022"]
[Site "Trogir"]
[Date "2022.06.25"]
[Round "6.10"]
[White "Zovko, Josipa"]
[Black "Karij, Petra"]
[Result "1/2-1/2"]
[ECO "D30"]
[WhiteElo "1419"]
[BlackElo "1433"]
[Annotator "NA RC"]
[PlyCount "52"]
[EventDate "2022.06.22"]
[EventType "swiss"]
[EventCountry "CRO"]
[SourceTitle "playchess.com"]
[Source "ChessBase"]
[SourceQuality "1"]
[TimeControl "5400+30"]

1. Nf3 {[%emt 0:00:05]} d5 {[%emt 0:00:19]} 2. d4 {[%emt 0:00:26]} c5 {[%emt 0:00:10]} 3. c4 {[%emt 0:01:45]} e6 {[%emt 0:00:44]} 4. cxd5 {[%emt 0:00:40]} exd5 {[%emt 0:00:14]} 5. e3 {[%emt 0:11:05]} Nf6 {[%emt 0:03:01]} 6. Bb5+ {[%emt 0:03:50]} Bd7 {[%emt 0:05:51]} 7. Bxd7+ {[%emt 0:00:13]} Nbxd7 {[%emt 0:00:27]} 8. O-O {[%emt 0:02:31]} Be7 {[%emt 0:02:48]} 9. dxc5 {[%emt 0:05:00]} Nxc5 {[%emt 0:01:17]} 10. b3 {[%emt 0:09:09]} O-O {[%emt 0:03:19]} 11. Bb2 {[%emt 0:03:14]} Nce4 {[%emt 0:05:24]} 12. Nd4 {[%emt 0:06:13]} Rc8 {[%emt 0:06:13]} 13. Nd2 {[%emt 0:07:02]} Nxd2 {[%emt 0:02:44]} 14. Qxd2 {[%emt 0:01:22]} Ne4 {[%emt 0:00:13]} 15. Qe2 {[%emt 0:03:07]} Bf6 {[%emt 0:04:10]} 16. Rac1 {[%emt 0:04:33]} Qa5 {[%emt 0:05:22]} 17. Ra1 {[%emt 0:14:37]} Rfe8 {[%emt 0:05:44]} 18. Rfd1 {[%emt 0:08:00]} Nc3 {[%emt 0:03:08]} 19. Bxc3 {[%emt 0:01:54]} Qxc3 {[%emt 0:00:05]} 20. Qd2 {[%emt 0:02:06]} Bxd4 {[%emt 0:02:18]} 21. Qxd4 {[%emt 0:01:03]} Qxd4 {[%emt 0:01:21]} 22. Rxd4 {[%emt 0:00:09]} Red8 {[%emt 0:00:03]} 23. Rd2 {[%emt 0:01:33]} Kf8 {[%emt 0:00:37]} 24. g3 {[%emt 0:01:00]} Ke7 {[%emt 0:00:26]} 25. Rad1 {[%emt 0:00:17]} Ke6 {[%emt 0:00:56]} 26. Kg2 {[%emt 0:04:48]} Rd6 {[%emt 0:02:27]} 1/2-1/2

[Event "Croatian-ch Youth U15 2022"]
[Site "Trogir"]
[Date "2022.06.26"]
[Round "7.1"]
[White "Frouth, Vibor"]
[Black "Grgantov, Marin"]
[Result "0-1"]
[ECO "C54"]
[WhiteElo "1493"]
[BlackElo "2081"]
[Annotator "NA RC"]
[PlyCount "56"]
[EventDate "2022.06.22"]
[EventType "swiss"]
[EventCountry "CRO"]
[SourceTitle "playchess.com"]
[Source "ChessBase"]
[SourceQuality "1"]
[TimeControl "5400+30"]

1. e4 {[%emt 0:00:08]} e5 {[%emt 0:00:10]} 2. Nf3 {[%emt 0:01:00]} Nc6 {[%emt 0:00:10]} 3. Bc4 {[%emt 0:00:09]} Bc5 {[%emt 0:00:10]} 4. c3 {[%emt 0:00:08]} Nf6 {[%emt 0:00:06]} 5. d4 {[%emt 0:01:28]} exd4 {[%emt 0:00:29]} 6. e5 {[%emt 0:00:19]} d5 {[%emt 0:00:41]} 7. Be2 {[%emt 0:00:40]} Ne4 {[%emt 0:04:27]} 8. cxd4 {[%emt 0:00:22]} Bb6 {[%emt 0:00:24]} 9. O-O {[%emt 0:00:52]} O-O {[%emt 0:01:16]} 10. Be3 {[%emt 0:00:38]} f6 {[%emt 0:09:49]} 11. exf6 {[%emt 0:02:10]} Qxf6 {[%emt 0:00:49]} 12. Nc3 {[%emt 0:04:53]} Be6 {[%emt 0:10:15]} 13. a3 {[%emt 0:12:25]} a6 {[%emt 0:17:34]} 14. Qd3 {[%emt 0:11:21]} Nd6 {[%emt 0:02:36]} 15. Bg5 {[%emt 0:02:23]} Qf5 {[%emt 0:01:30]} 16. Be3 {[%emt 0:05:23]} Rae8 {[%emt 0:15:39]} 17. Rad1 {[%emt 0:06:00]} Ne4 {[%emt 0:00:00]} 18. Nd2 {[%emt 0:06:37]} Bf7 {[%emt 0:03:41]} 19. b4 {[%emt 0:07:57]} Bg6 {[%emt 0:01:44]} 20. Ncxe4 {[%emt 0:00:55]} dxe4 {[%emt 0:02:14]} 21. Qc3 {[%emt 0:00:35]} Rd8 {[%emt 0:03:21]} 22. Bc4+ {[%emt 0:01:00]} Kh8 {[%emt 0:01:15]} 23. Nb3 {[%emt 0:00:44]} Rf6 {[%emt 0:02:37]} 24. a4 {[%emt 0:01:13]} Bh5 {[%emt 0:01:19]} 25. Rd2 {[%emt 0:02:06]} Bf3 {[%emt 0:01:25]} 26. Rc1 {[%emt 0:04:05]} Qg4 {[%emt 0:05:32]} 27. g3 {[%emt 0:00:30]} Rd5 {[%emt 0:01:15]} 28. h4 {[%emt 0:01:18]} Qh3 {[%emt 0:00:41]} 0-1

[Event "Croatian-ch Youth U15 2022"]
[Site "Trogir"]
[Date "2022.06.26"]
[Round "7.2"]
[White "Colev, Ivor"]
[Black "Jakovic, Roko"]
[Result "1-0"]
[ECO "B87"]
[WhiteElo "1984"]
[BlackElo "1944"]
[Annotator "NA RC"]
[PlyCount "103"]
[EventDate "2022.06.22"]
[EventType "swiss"]
[EventCountry "CRO"]
[SourceTitle "playchess.com"]
[Source "ChessBase"]
[SourceQuality "1"]
[TimeControl "5400+30"]

1. e4 {[%emt 0:00:13]} c5 {[%emt 0:00:15]} 2. Nf3 {[%emt 0:00:33]} d6 {[%emt 0:00:13]} 3. d4 {[%emt 0:00:04]} cxd4 {[%emt 0:00:07]} 4. Nxd4 {[%emt 0:00:11]} Nf6 {[%emt 0:00:07]} 5. Nc3 {[%emt 0:00:04]} a6 {[%emt 0:00:13]} 6. Bc4 {[%emt 0:00:03]} e6 {[%emt 0:00:14]} 7. Bb3 {[%emt 0:00:03]} b5 {[%emt 0:00:08]} 8. O-O {[%emt 0:00:14]} Be7 {[%emt 0:00:03]} 9. Qf3 {[%emt 0:00:04]} Qc7 {[%emt 0:00:07]} 10. Qg3 {[%emt 0:00:07]} Nc6 {[%emt 0:00:28]} 11. Nxc6 {[%emt 0:00:12]} Qxc6 {[%emt 0:00:07]} 12. Re1 {[%emt 0:00:29]} Bb7 {[%emt 0:00:08]} 13. a3 {[%emt 0:00:13]} Rd8 {[%emt 0:01:08]} 14. f3 {[%emt 0:00:07]} O-O {[%emt 0:00:30]} 15. Bh6 {[%emt 0:00:08]} Ne8 {[%emt 0:00:07]} 16. Kh1 {[%emt 0:00:33]} Kh8 {[%emt 0:01:28]} 17. Bg5 {[%emt 0:00:12]} Bxg5 {[%emt 0:02:10]} 18. Qxg5 {[%emt 0:00:06]} Nf6 {[%emt 0:00:39]} 19. Rad1 {[%emt 0:02:44]} Rd7 {[%emt 0:13:54]} 20. Rd3 {[%emt 0:02:58]} Rfd8 {[%emt 0:03:03]} 21. Red1 {[%emt 0:03:08]} h6 {[%emt 0:09:39]} 22. Qh4 {[%emt 0:08:55]} Qc5 {[%emt 0:04:37]} 23. g4 {[%emt 0:10:41]} Kg8 {[%emt 0:10:35]} 24. Rg1 {[%emt 0:19:15]} Nh7 {[%emt 0:15:35]} 25. Qg3 {[%emt 0:08:08]} g5 {[%emt 0:15:32]} 26. h4 {[%emt 0:03:43]} Kg7 {[%emt 0:01:27]} 27. hxg5 {[%emt 0:01:50]} Nxg5 {[%emt 0:02:15]} 28. Rgd1 {[%emt 0:13:14]} a5 {[%emt 0:01:53]} 29. Rd4 {[%emt 0:03:22]} b4 {[%emt 0:04:18]} 30. axb4 {[%emt 0:06:05]} axb4 {[%emt 0:00:03]} 31. Na4 {[%emt 0:02:19]} Qb5 {[%emt 0:00:22]} 32. Kg1 {[%emt 0:06:05]} e5 {[%emt 0:02:52]} 33. R4d3 {[%emt 0:01:21]} f6 {[%emt 0:00:54]} 34. Kg2 {[%emt 0:09:27]} d5 {[%emt 0:02:24]} 35. exd5 {[%emt 0:00:10]} Bxd5 {[%emt 0:00:06]} 36. Bxd5 {[%emt 0:00:57]} Rxd5 {[%emt 0:00:12]} 37. Rxd5 {[%emt 0:00:26]} Rxd5 {[%emt 0:00:10]} 38. Rxd5 {[%emt 0:00:32]} Qxd5 {[%emt 0:00:05]} 39. Nb6 {[%emt 0:00:33]} Qc6 {[%emt 0:01:51]} 40. Qf2 {[%emt 0:00:16]} e4 {[%emt 0:05:40]} 41. fxe4 {[%emt 0:00:32]} Nxe4 {[%emt 0:00:38]} 42. Qe3 {[%emt 0:00:39]} Qxc2+ {[%emt 0:01:54]} 43. Kf3 {[%emt 0:00:28]} Ng5+ {[%emt 0:01:25]} 44. Kg3 {[%emt 0:00:03]} Qxb2 {[%emt 0:00:35]} 45. Qe7+ {[%emt 0:00:40]} Nf7 {[%emt 0:01:18]} 46. Nd7 {[%emt 0:00:24]} Qc3+ {[%emt 0:00:57]} 47. Kh4 {[%emt 0:00:15]} Kg6 {[%emt 0:01:01]} 48. Nf8+ {[%emt 0:00:40]} Kg7 {[%emt 0:00:07]} 49. Ne6+ {[%emt 0:00:06]} Kg6 {[%emt 0:00:13]} 50. Nf4+ {[%emt 0:00:35]} Kg7 {[%emt 0:00:03]} 51. Nh5+ {[%emt 0:00:15]} Kg6 {[%emt 0:00:42]} 52. Qe4+ {[%emt 0:00:09]} 1-0

[Event "Croatian-ch Youth U15 2022"]
[Site "Trogir"]
[Date "2022.06.26"]
[Round "7.3"]
[White "Horcicka, Jan"]
[Black "Franc, Borna"]
[Result "1/2-1/2"]
[ECO "C50"]
[WhiteElo "1804"]
[BlackElo "2032"]
[Annotator "NA RC"]
[PlyCount "42"]
[EventDate "2022.06.22"]
[EventType "swiss"]
[EventCountry "CRO"]
[SourceTitle "playchess.com"]
[Source "ChessBase"]
[SourceQuality "1"]
[TimeControl "5400+30"]

1. e4 {[%emt 0:00:03]} e5 {[%emt 0:00:02]} 2. Nf3 {[%emt 0:00:05]} Nc6 {[%emt 0:00:03]} 3. Bc4 {[%emt 0:00:05]} Bc5 {[%emt 0:00:03]} 4. Nc3 {[%emt 0:00:04]} d6 {[%emt 0:00:03]} 5. h3 {[%emt 0:00:04]} a6 {[%emt 0:00:03]} 6. a3 {[%emt 0:01:15]} Be6 {[%emt 0:00:06]} 7. Ba2 {[%emt 0:03:38]} Nf6 {[%emt 0:07:16]} 8. d3 {[%emt 0:00:08]} h6 {[%emt 0:00:10]} 9. Be3 {[%emt 0:22:29]} Ba7 {[%emt 0:00:57]} 10. d4 {[%emt 0:04:12]} exd4 {[%emt 0:01:00]} 11. Nxd4 {[%emt 0:03:28]} Nxd4 {[%emt 0:00:27]} 12. Bxd4 {[%emt 0:00:07]} Bxa2 {[%emt 0:00:11]} 13. Rxa2 {[%emt 0:00:30]} Bxd4 {[%emt 0:00:46]} 14. Qxd4 {[%emt 0:00:05]} O-O {[%emt 0:00:22]} 15. O-O {[%emt 0:02:35]} Re8 {[%emt 0:01:39]} 16. Raa1 {[%emt 0:00:30]} c5 {[%emt 0:03:48]} 17. Qd3 {[%emt 0:00:34]} Qb6 {[%emt 0:00:06]} 18. Rfd1 {[%emt 0:01:27]} Rad8 {[%emt 0:00:56]} 19. a4 {[%emt 0:11:45]} Qc6 {[%emt 0:01:29]} 20. f3 {[%emt 0:00:54]} Qd7 {[%emt 0:06:48]} 21. Qc4 {[%emt 0:05:25]} Qe6 {[%emt 0:02:28]} 1/2-1/2

[Event "Croatian-ch Youth U15 2022"]
[Site "Trogir"]
[Date "2022.06.26"]
[Round "7.4"]
[White "Sundac, Ivano"]
[Black "Tomljanovic, Ivano"]
[Result "1-0"]
[ECO "D60"]
[WhiteElo "1978"]
[BlackElo "1844"]
[Annotator "NA RC"]
[PlyCount "61"]
[EventDate "2022.06.22"]
[EventType "swiss"]
[EventCountry "CRO"]
[SourceTitle "playchess.com"]
[Source "ChessBase"]
[SourceQuality "1"]
[TimeControl "5400+30"]

1. Nf3 {[%emt 0:00:02]} d5 {[%emt 0:00:33]} 2. d4 {[%emt 0:01:06]} Nf6 {[%emt 0:03:04]} 3. c4 {[%emt 0:01:14]} c6 {[%emt 0:00:43]} 4. Nc3 {[%emt 0:00:45]} e6 {[%emt 0:00:30]} 5. Bg5 {[%emt 0:02:22]} Be7 {[%emt 0:01:03]} 6. e3 {[%emt 0:00:37]} Nbd7 {[%emt 0:00:15]} 7. Bd3 {[%emt 0:00:40]} dxc4 {[%emt 0:01:13]} 8. Bxc4 {[%emt 0:00:07]} Nd5 {[%emt 0:00:28]} 9. Bxe7 {[%emt 0:01:03]} Qxe7 {[%emt 0:00:15]} 10. O-O {[%emt 0:00:57]} O-O {[%emt 0:00:32]} 11. e4 {[%emt 0:02:21]} Nxc3 {[%emt 0:00:31]} 12. bxc3 {[%emt 0:00:04]} e5 {[%emt 0:00:30]} 13. Qe2 {[%emt 0:01:13]} h6 {[%emt 0:04:56]} 14. Rfe1 {[%emt 0:00:41]} Re8 {[%emt 0:00:59]} 15. Rad1 {[%emt 0:00:33]} exd4 {[%emt 0:12:37]} 16. cxd4 {[%emt 0:00:19]} Nb6 {[%emt 0:01:59]} 17. Bb3 {[%emt 0:07:04]} Bg4 {[%emt 0:03:19]} 18. h3 {[%emt 0:00:42]} Bxf3 {[%emt 0:02:20]} 19. Qxf3 {[%emt 0:00:30]} Nd7 {[%emt 0:01:17]} 20. e5 {[%emt 0:00:46]} Nf8 {[%emt 0:00:19]} 21. d5 {[%emt 0:02:27]} cxd5 {[%emt 0:01:24]} 22. Bxd5 {[%emt 0:01:24]} Rab8 {[%emt 0:01:30]} 23. Qf5 {[%emt 0:05:17]} Ne6 {[%emt 0:08:09]} 24. Be4 {[%emt 0:01:21]} Ng5 {[%emt 0:00:57]} 25. Bc2 {[%emt 0:00:38]} Qe6 {[%emt 0:01:48]} 26. Qd3 {[%emt 0:03:46]} Qc6 {[%emt 0:12:45]} 27. h4 {[%emt 0:01:22]} Ne6 {[%emt 0:00:17]} 28. Qh7+ {[%emt 0:00:09]} Kf8 {[%emt 0:00:35]} 29. Rd6 {[%emt 0:01:50]} Qc3 {[%emt 0:01:43]} 30. Re3 {[%emt 0:00:52]} Qc5 {[%emt 0:01:03]} 31. Rd7 {[%emt 0:00:16]} 1-0

[Event "Croatian-ch Youth U15 2022"]
[Site "Trogir"]
[Date "2022.06.26"]
[Round "7.5"]
[White "Zadro, Matej"]
[Black "Gal, Andrej"]
[Result "1-0"]
[ECO "B64"]
[WhiteElo "1861"]
[BlackElo "1874"]
[Annotator "NA RC"]
[PlyCount "109"]
[EventDate "2022.06.22"]
[EventType "swiss"]
[EventCountry "CRO"]
[SourceTitle "playchess.com"]
[Source "ChessBase"]
[SourceQuality "1"]
[TimeControl "5400+30"]

1. e4 {[%emt 0:02:08]} c5 {[%emt 0:00:18]} 2. Nf3 {[%emt 0:00:04]} d6 {[%emt 0:00:04]} 3. d4 {[%emt 0:00:02]} cxd4 {[%emt 0:00:03]} 4. Nxd4 {[%emt 0:00:04]} Nf6 {[%emt 0:00:10]} 5. Nc3 {[%emt 0:00:03]} Nc6 {[%emt 0:00:07]} 6. Bg5 {[%emt 0:01:02]} e6 {[%emt 0:00:09]} 7. Qd2 {[%emt 0:00:04]} Be7 {[%emt 0:00:05]} 8. O-O-O {[%emt 0:00:07]} O-O {[%emt 0:00:07]} 9. f4 {[%emt 0:00:03]} d5 {[%emt 0:01:42]} 10. e5 {[%emt 0:02:11]} Nd7 {[%emt 0:00:15]} 11. h4 {[%emt 0:00:09]} Nb6 {[%emt 0:00:58]} 12. Bxe7 {[%emt 0:00:09]} Qxe7 {[%emt 0:00:11]} 13. h5 {[%emt 0:00:04]} Bd7 {[%emt 0:05:55]} 14. h6 {[%emt 0:02:53]} g6 {[%emt 0:00:52]} 15. Ncb5 {[%emt 0:00:18]} Nxd4 {[%emt 0:05:14]} 16. Nxd4 {[%emt 0:00:19]} a6 {[%emt 0:01:52]} 17. Rh3 {[%emt 0:38:19]} Bb5 {[%emt 0:11:48]} 18. b3 {[%emt 0:04:36]} Rfc8 {[%emt 0:07:12]} 19. Kb1 {[%emt 0:05:33]} Nd7 {[%emt 0:03:11]} 20. Bxb5 {[%emt 0:19:19]} axb5 {[%emt 0:00:06]} 21. Nxb5 {[%emt 0:00:02]} Rc5 {[%emt 0:11:37]} 22. Qb4 {[%emt 0:09:26]} b6 {[%emt 0:23:58]} 23. Re1 {[%emt 0:08:48]} Nb8 {[%emt 0:05:39]} 24. Nd6 {[%emt 0:02:55]} Qa7 {[%emt 0:06:25]} 25. a4 {[%emt 0:00:42]} Nc6 {[%emt 0:01:05]} 26. Qa3 {[%emt 0:01:17]} Qa5 {[%emt 0:04:56]} 27. Rd1 {[%emt 0:01:07]} Qa6 {[%emt 0:04:09]} 28. Rhd3 {[%emt 0:00:15]} Na5 {[%emt 0:01:12]} 29. g4 {[%emt 0:02:00]} Nb7 {[%emt 0:01:14]} 30. Nxb7 {[%emt 0:00:20]} Qxb7 {[%emt 0:00:00]} 31. Qb4 {[%emt 0:00:20]} Qc6 {[%emt 0:01:03]} 32. c3 {[%emt 0:00:55]} Rca5 {[%emt 0:02:33]} 33. c4 {[%emt 0:00:32]} Rd8 {[%emt 0:01:35]} 34. Qe7 {[%emt 0:00:25]} Rc8 {[%emt 0:01:01]} 35. Qf6 {[%emt 0:00:34]} Kf8 {[%emt 0:00:06]} 36. Qh8+ {[%emt 0:00:25]} Ke7 {[%emt 0:00:06]} 37. Qxh7 {[%emt 0:00:02]} Rxa4 {[%emt 0:00:57]} 38. Qg7 {[%emt 0:00:33]} Rxc4 {[%emt 0:00:27]} 39. Qf6+ {[%emt 0:00:15]} Ke8 {[%emt 0:00:27]} 40. bxc4 {[%emt 0:00:23]} Qxc4 {[%emt 0:00:12]} 41. Qh8+ {[%emt 0:00:08]} Ke7 {[%emt 0:00:27]} 42. Qxc8 {[%emt 0:00:05]} Qxc8 {[%emt 0:00:04]} 43. h7 {[%emt 0:00:03]} Qh8 {[%emt 0:00:54]} 44. Rh1 {[%emt 0:00:08]} b5 {[%emt 0:00:36]} 45. Rc3 {[%emt 0:03:05]} Kd7 {[%emt 0:00:33]} 46. Kc2 {[%emt 0:00:17]} b4 {[%emt 0:01:09]} 47. Rc5 {[%emt 0:00:04]} d4 {[%emt 0:00:27]} 48. Kd3 {[%emt 0:00:33]} b3 {[%emt 0:00:22]} 49. Kxd4 {[%emt 0:00:21]} b2 {[%emt 0:00:44]} 50. Rb5 {[%emt 0:00:22]} Qa8 {[%emt 0:00:33]} 51. h8=Q {[%emt 0:00:36]} Qa4+ {[%emt 0:00:10]} 52. Kc3 {[%emt 0:00:19]} Qxb5 {[%emt 0:00:18]} 53. Rd1+ {[%emt 0:00:06]} Kc7 {[%emt 0:00:43]} 54. Qd8+ {[%emt 0:00:09]} Kc6 {[%emt 0:00:20]} 55. Qd7+ {[%emt 0:01:03]} 1-0

[Event "Croatian-ch Youth U15 2022"]
[Site "Trogir"]
[Date "2022.06.26"]
[Round "7.6"]
[White "Bunic, Emanuel"]
[Black "Radic, Len"]
[Result "1-0"]
[ECO "D07"]
[WhiteElo "1941"]
[BlackElo "1457"]
[Annotator "NA RC"]
[PlyCount "35"]
[EventDate "2022.06.22"]
[EventType "swiss"]
[EventCountry "CRO"]
[SourceTitle "playchess.com"]
[Source "ChessBase"]
[SourceQuality "1"]
[TimeControl "5400+30"]

1. d4 {[%emt 0:00:03]} d5 {[%emt 0:00:10]} 2. c4 {[%emt 0:00:11]} Nc6 {[%emt 0:00:07]} 3. cxd5 {[%emt 0:00:16]} Qxd5 {[%emt 0:00:24]} 4. e3 {[%emt 0:00:18]} e5 {[%emt 0:00:20]} 5. Nc3 {[%emt 0:00:13]} Bb4 {[%emt 0:00:13]} 6. a3 {[%emt 0:00:21]} Bxc3+ {[%emt 0:02:40]} 7. bxc3 {[%emt 0:00:09]} Qd6 {[%emt 0:03:00]} 8. a4 {[%emt 0:03:29]} Nge7 {[%emt 0:02:52]} 9. Ba3 {[%emt 0:03:04]} Qd8 {[%emt 0:06:56]} 10. Bc4 {[%emt 0:11:01]} exd4 {[%emt 0:03:56]} 11. cxd4 {[%emt 0:00:19]} O-O {[%emt 0:01:29]} 12. Ne2 {[%emt 0:07:38]} a6 {[%emt 0:05:24]} 13. O-O {[%emt 0:02:05]} Bf5 {[%emt 0:06:36]} 14. Ng3 {[%emt 0:05:29]} Bg6 {[%emt 0:01:55]} 15. f4 {[%emt 0:06:32]} h6 {[%emt 0:28:34]} 16. f5 {[%emt 0:01:15]} Bh7 {[%emt 0:00:23]} 17. Qh5 {[%emt 0:07:23]} g6 {[%emt 0:05:07]} 18. Qxh6 {[%emt 0:00:53]} 1-0

[Event "Croatian-ch Youth U15 2022"]
[Site "Trogir"]
[Date "2022.06.26"]
[Round "7.7"]
[White "Mandaric, Fran"]
[Black "Djuric, Leon"]
[Result "0-1"]
[ECO "B50"]
[WhiteElo "1808"]
[BlackElo "1475"]
[Annotator "NA RC"]
[PlyCount "102"]
[EventDate "2022.06.22"]
[EventType "swiss"]
[EventCountry "CRO"]
[SourceTitle "playchess.com"]
[Source "ChessBase"]
[SourceQuality "1"]
[TimeControl "5400+30"]

1. e4 {[%emt 0:00:03]} c5 {[%emt 0:00:06]} 2. Nf3 {[%emt 0:00:04]} d6 {[%emt 0:00:10]} 3. c3 {[%emt 0:00:05]} Nc6 {[%emt 0:01:52]} 4. Bd3 {[%emt 0:00:07]} g6 {[%emt 0:00:11]} 5. Bc2 {[%emt 0:00:11]} Bg7 {[%emt 0:00:24]} 6. h3 {[%emt 0:00:38]} e5 {[%emt 0:01:45]} 7. d3 {[%emt 0:00:18]} Nf6 {[%emt 0:01:12]} 8. O-O {[%emt 0:01:23]} O-O {[%emt 0:00:25]} 9. Re1 {[%emt 0:02:38]} Re8 {[%emt 0:01:43]} 10. Be3 {[%emt 0:01:13]} Qa5 {[%emt 0:11:14]} 11. Nbd2 {[%emt 0:06:15]} b5 {[%emt 0:02:53]} 12. a4 {[%emt 0:15:10]} b4 {[%emt 0:02:13]} 13. Nc4 {[%emt 0:03:42]} Qc7 {[%emt 0:00:30]} 14. Bg5 {[%emt 0:10:25]} bxc3 {[%emt 0:02:11]} 15. bxc3 {[%emt 0:00:27]} Be6 {[%emt 0:01:57]} 16. Bxf6 {[%emt 0:06:39]} Bxf6 {[%emt 0:00:12]} 17. Bb3 {[%emt 0:02:54]} Rab8 {[%emt 0:03:34]} 18. Ba2 {[%emt 0:06:11]} d5 {[%emt 0:04:04]} 19. Ncxe5 {[%emt 0:17:38]} Nxe5 {[%emt 0:00:48]} 20. exd5 {[%emt 0:00:46]} Nxf3+ {[%emt 0:01:54]} 21. Qxf3 {[%emt 0:00:18]} Bf5 {[%emt 0:01:00]} 22. Rxe8+ {[%emt 0:04:07]} Rxe8 {[%emt 0:00:12]} 23. g4 {[%emt 0:00:08]} Bxc3 {[%emt 0:00:54]} 24. Rc1 {[%emt 0:00:13]} Qe7 {[%emt 0:06:20]} 25. Qd1 {[%emt 0:16:45]} Bb4 {[%emt 0:04:52]} 26. Rc4 {[%emt 0:02:20]} Qe1+ {[%emt 0:00:34]} 27. Qxe1 {[%emt 0:00:17]} Rxe1+ {[%emt 0:00:04]} 28. Kg2 {[%emt 0:00:27]} Bxd3 {[%emt 0:00:10]} 29. Rf4 {[%emt 0:00:07]} Be4+ {[%emt 0:00:41]} 30. f3 {[%emt 0:00:25]} Re2+ {[%emt 0:00:05]} 31. Kf1 {[%emt 0:00:23]} Rxa2 {[%emt 0:00:33]} 32. fxe4 {[%emt 0:00:08]} c4 {[%emt 0:00:18]} 33. e5 {[%emt 0:00:32]} c3 {[%emt 0:02:18]} 34. Rxb4 {[%emt 0:02:47]} c2 {[%emt 0:00:07]} 35. Rb8+ {[%emt 0:00:23]} Kg7 {[%emt 0:00:07]} 36. Rc8 {[%emt 0:00:05]} Ra1+ {[%emt 0:00:05]} 37. Ke2 {[%emt 0:00:04]} c1=Q {[%emt 0:00:10]} 38. Rxc1 {[%emt 0:00:08]} Rxc1 {[%emt 0:00:03]} 39. d6 {[%emt 0:00:07]} Rc5 {[%emt 0:00:22]} 40. Kd3 {[%emt 0:00:31]} Rxe5 {[%emt 0:00:10]} 41. Kd4 {[%emt 0:00:08]} Re1 {[%emt 0:00:12]} 42. Kc5 {[%emt 0:00:05]} Kf8 {[%emt 0:00:19]} 43. Kc6 {[%emt 0:00:34]} Ke8 {[%emt 0:00:05]} 44. a5 {[%emt 0:00:08]} f5 {[%emt 0:00:17]} 45. gxf5 {[%emt 0:00:37]} gxf5 {[%emt 0:00:10]} 46. Kc7 {[%emt 0:00:09]} Rc1+ {[%emt 0:00:08]} 47. Kb7 {[%emt 0:00:04]} Kd7 {[%emt 0:00:08]} 48. Kxa7 {[%emt 0:00:07]} Kxd6 {[%emt 0:00:07]} 49. a6 {[%emt 0:00:07]} f4 {[%emt 0:00:10]} 50. Kb8 {[%emt 0:00:15]} f3 {[%emt 0:00:04]} 51. a7 {[%emt 0:00:19]} Ra1 {[%emt 0:00:03]} 0-1